[Event "US Masters 2024"]
[Site "Charlotte"]
[Date "2024.11.28"]
[Round "1.7"]
[White "Graif, William"]
[Black "Mishra, Abhimanyu"]
[Result "0-1"]
[ECO "B22"]
[WhiteElo "2215"]
[BlackElo "2616"]
[Annotator "TA"]
[PlyCount "100"]
[EventDate "2024.09.23"]
[EventType "swiss"]
[EventCountry "USA"]
[SourceTitle "playchess.com"]
[Source "ChessBase"]
[SourceQuality "1"]
[TimeControl "5400+30"]

{[%evp 9,100,0,13,-1,0,0,11,0,0,-9,0,0,0,-2,0,0,0,0,0,0,0,0,0,0,0,0,0,0,0,-8,0,0,0,0,0,0,0,0,0,-7,-4,-22,-16,-16,-20,-37,-4,-20,-12,-92,-37,-39,-14,-20,-8,-14,-12,-23,-8,-15,0,0,0,0,0,-50,0,0,0,0,0,-46,-46,-46,-35,-50,0,0,0,0,0,0,0,0,0,0,0,0,0,0,0,0,0]} 1. e4 {[%emt 0:00:10]} c5 {[%emt 0:00:04]} 2. c3 {[%emt 0:00:16]} Nf6 {[%emt 0:00:30]} 3. e5 {[%emt 0:00:13]} Nd5 {[%emt 0:00:13]} 4. d4 {[%emt 0:00:07]} cxd4 {[%emt 0:00:54]} 5. Nf3 {[%emt 0:00:06]} d6 {[%emt 0:01:08]} 6. Bb5+ {[%emt 0:00:31]} Bd7 {[%emt 0:02:20]} 7. Bc4 {[%emt 0:00:09]} e6 {[%emt 0:01:28]} 8. cxd4 {[%emt 0:00:23]} (8. Qxd4 Nc6 9. Qe4 dxe5 10. Nxe5 Nf6 $15) 8... Be7 {[%emt 0:04:47]} 9. Bxd5 {[%emt 0:26:15]} exd5 {[%emt 0:00:07]} 10. Nc3 {[%emt 0:05:07]} Be6 {[%emt 0:09:19]} 11. Qb3 {[%emt 0:07:45]} Qd7 {[%emt 0:15:58]} 12. Bf4 {[%emt 0:18:21]} (12. Nxd5 $2 {loses.} dxe5 13. Nxe5 Qxd5 $19) 12... Nc6 {[%emt 0:01:29]} 13. exd6 {[%emt 0:17:52]} Bxd6 {[%emt 0:00:39]} 14. Bxd6 {[%emt 0:00:10]} Qxd6 {[%emt 0:00:04]} 15. O-O {[%emt 0:10:57]} Rb8 {[%emt 0:07:26]} 16. Nb5 {[%emt 0:06:11]} Qe7 {[%emt 0:00:55]} 17. Qe3 {[%emt 0:01:55]} O-O {[%emt 0:01:44]} 18. Rfe1 {[%emt 0:01:36]} Qd7 {[%emt 0:05:23]} 19. Rac1 {[%emt 0:01:04]} Bg4 {[%emt 0:05:26]} 20. h3 {[%emt 0:00:36]} Rbe8 {[%emt 0:03:06]} 21. Qf4 {[%emt 0:00:32]} Bxf3 {[%emt 0:02:42]} 22. Qxf3 {[%emt 0:00:04]} Re6 {[%emt 0:02:14]} 23. Kf1 {[%emt 0:01:06]} h6 {[%emt 0:06:48]} 24. Nc3 {[%emt 0:00:26]} Nxd4 {[%emt 0:03:07]} 25. Qxd5 {[%emt 0:00:10]} Rd6 {[%emt 0:00:13]} 26. Qe4 {[%emt 0:00:30]} Rd8 {[%emt 0:02:01]} 27. Rcd1 {[%emt 0:00:40]} b5 {[%emt 0:02:56]} 28. a3 {[%emt 0:00:39]} a5 {[%emt 0:00:50]} 29. Qe7 {[%emt 0:00:26] [#]} (29. Ne2 $11) 29... Qc6 {[%emt 0:03:19]} (29... Qc8 $1 $17 {And now ...b4 would win.} 30. Qe4 Re6) 30. Qe4 $15 {[%emt 0:00:40][%cal Od1d4] Black must now prevent Rxd4!} Qc5 {[%emt 0:05:49]} 31. Ne2 {[%emt 0:00:25]} Ne6 {[%emt 0:06:26][%cal Bd4e6,Be6f4,Bf4d3][%mdl 32]} 32. Rxd6 {[%emt 0:00:06]} Qxd6 {[%emt 0:00:05]} 33. Ng3 {[%emt 0:00:56]} Qd2 {[%emt 0:02:08]} (33... g6 {simplifies} 34. b4 axb4 35. Qxb4 Qxb4 36. axb4 h5) 34. Qe2 {[%emt 0:00:11]} Nf4 {[%emt 0:01:50]} 35. Qxb5 {[%emt 0:00:42]} (35. Qe3 {simplifies} Kh7 36. Ne4 Qxe3 37. fxe3 Nd5 38. Ke2) 35... Nd3 {[%emt 0:01:21][%csl Gd3][%cal Rd2e1] [#]} 36. Re8+ {[%emt 0:00:08]} Rxe8 {[%emt 0:00:05]} 37. Qxe8+ $11 {[%emt 0:00:02][%mdl 4096] Endgame. KQN-KQN} Kh7 {[%emt 0:00:06][%csl Gd3][%cal Rd2f2]} 38. Kg1 {[%emt 0:00:49]} Qxf2+ {[%emt 0:00:32]} 39. Kh2 {[%emt 0:00:04]} Nxb2 {[%emt 0:00:39]} (39... Qxb2 $2 {too greedy.} 40. Qe4+ (40. Qxf7 Qxa3 41. Ne4 Qa1 $11) 40... g6 41. Qxd3 $18) 40. Qe4+ {[%emt 0:00:46]} (40. Qe5 $11 g6 41. Ne4) 40... g6 $15 {[%emt 0:00:09]} 41. h4 {[%emt 0:00:51]} Nd1 {[%emt 0:03:05]} 42. h5 {[%emt 0:00:15] aiming for hxg6+.} Qf6 {[%emt 0:00:44]} (42... Qa7 $1 $15) 43. hxg6+ $11 {[%emt 0:00:59] The position is equal.} fxg6 {[%emt 0:00:12]} 44. Qb7+ {[%emt 0:00:45]} Qg7 {[%emt 0:00:04]} 45. Qd5 {[%emt 0:00:17][%csl LRa5,LRd1]} Ne3 {[%emt 0:01:44]} 46. Qxa5 {[%emt 0:00:13]} Ng4+ {[%emt 0:00:44]} 47. Kh3 {[%emt 0:00:05]} Nf2+ {[%emt 0:00:10]} 48. Kh2 {[%emt 0:00:05]} Ng4+ {[%emt 0:00:18]} 49. Kh3 {[%emt 0:00:10]} Qd7 {[%emt 0:00:13]} 50. a4 {[%emt 0:01:57]} h5 {[%emt 0:00:54][%mdl 32768] Weighted Error Value: White=0.08 (flawless) /Black=0.06 (flawless) .  Mistake:       	White=2     	Black=2      Inaccurate:     	---       	Black=2      OK:         	White=18    	Black=13     Best:        	White=6     	Black=2     . Loss on time!?} 0-1

[Event "US Masters 2024"]
[Site "Charlotte"]
[Date "2024.11.28"]
[Round "1.8"]
[White "Theodorou, Nikolas"]
[Black "Tang, Benjamin"]
[Result "1-0"]
[ECO "A38"]
[WhiteElo "2612"]
[BlackElo "2215"]
[Annotator "TA"]
[PlyCount "77"]
[EventDate "2024.09.23"]
[EventType "swiss"]
[EventCountry "USA"]
[SourceTitle "playchess.com"]
[Source "ChessBase"]
[SourceQuality "1"]
[TimeControl "5400+30"]

{[%evp 17,77,12,14,0,24,-8,0,0,27,0,0,7,7,7,12,10,31,35,34,35,46,41,45,25,45,33,106,67,109,99,105,87,82,87,355,345,290,193,199,189,195,20,137,79,89,89,120,117,125,114,118,101,129,113,121,101,96,89,112,118,852,831]} 1. Nf3 {[%emt 0:00:06]} Nf6 {[%emt 0:00:06]} 2. g3 {[%emt 0:00:54]} g6 {[%emt 0:00:05]} 3. b3 {[%emt 0:00:03]} Bg7 {[%emt 0:00:29]} 4. Bb2 {[%emt 0:00:03]} c5 {[%emt 0:01:00]} 5. c4 {[%emt 0:01:19]} d6 {[%emt 0:00:56]} 6. Bg2 {[%emt 0:02:30]} e5 {[%emt 0:00:14]} 7. O-O {[%emt 0:00:07]} O-O {[%emt 0:00:46]} 8. d3 {[%emt 0:01:38]} Nc6 {[%emt 0:00:13]} 9. Nc3 {[%emt 0:00:11]} Ne8 {[%emt 0:02:14]} 10. a3 {[%emt 0:09:13]} a5 {[%emt 0:02:15]} 11. Ne1 {[%emt 0:03:21]} Rb8 {[%emt 0:04:23]} 12. Nc2 {[%emt 0:02:54] The position is equal.} Be6 {[%emt 0:02:04]} 13. Ne3 {[%emt 0:05:47]} Nc7 {[%emt 0:03:26]} 14. Ned5 {[%emt 0:00:24]} Ne7 {[%emt 0:01:26]} 15. Nxc7 {[%emt 0:03:45]} Qxc7 {[%emt 0:00:09]} 16. Qd2 {[%emt 0:02:18]} Nc6 {[%emt 0:16:12]} 17. e3 {[%emt 0:03:56]} Qd7 {[%emt 0:02:39]} 18. f4 {[%emt 0:00:11]} f5 {[%emt 0:13:51]} 19. Rad1 {[%emt 0:00:04]} Rfe8 {[%emt 0:05:57]} 20. h3 {[%emt 0:08:09]} h6 {[%emt 0:14:05]} 21. Kh2 {[%emt 0:00:20]} g5 {[%emt 0:03:21]} ({Black should play} 21... Na7 $14) 22. Nb5 {[%emt 0:01:28] fxg5 is the strong threat.} gxf4 {[%emt 0:10:14]} 23. gxf4 {[%emt 0:01:46]} (23. exf4 Kh7 $14) 23... Kh7 {[%emt 0:00:35]} 24. d4 {[%emt 0:09:03]} cxd4 {[%emt 0:01:52]} 25. exd4 {[%emt 0:00:18]} e4 $2 {[%emt 0:02:01][%mdl 8192]} (25... exd4 $16 {was necessary.} 26. Bxd4 (26. Nxd4 Nxd4 27. Bxd4 a4 $14) 26... Nxd4 27. Nxd4 a4) 26. d5 $18 {[%emt 0:01:29]} e3 {[%emt 0:00:23]} 27. dxe6 {[%emt 0:10:34]} Rxe6 {[%emt 0:00:22]} 28. Qe2 {[%emt 0:00:42]} Bxb2 {[%emt 0:00:05]} 29. Rd3 $2 {[%emt 0:00:02]} (29. Qxb2 e2 30. Qc2 Rf8 $17 (30... exf1=Q 31. Bxf1 Rg6 32. Bg2 $17) (30... exf1=N+ $2 31. Bxf1 Rg6 32. Qf2 $17)) (29. Rg1 $18 Bg7 30. Bd5) 29... Bg7 {[%emt 0:00:44]} (29... Qg7 $11 {remains equal.}) 30. Rxe3 {[%emt 0:00:46]} (30. Bd5 $142 Re7 31. Rg1 (31. Rxe3 Rbe8 $16)) 30... Rbe8 $16 {[%emt 0:01:12]} 31. Rxe6 {[%emt 0:00:06]} Qxe6 {[%emt 0:01:06]} 32. Qd3 {[%emt 0:00:02][%cal Ob5c7] [#] And now Nc7! would win.} Rd8 {[%emt 0:00:56]} 33. Rd1 {[%emt 0:02:45]} Qg6 {[%emt 0:00:56]} 34. Kh1 {[%emt 0:01:04]} Bf8 {[%emt 0:01:11]} 35. Rg1 {[%emt 0:03:19]} Qf6 {[%emt 0:00:12]} 36. Nc7 {[%emt 0:00:30]} Bg7 {[%emt 0:01:54] Black is weak on the light squares} 37. Bd5 {[%emt 0:01:51]} Nd4 {[%emt 0:00:34] Inhibits Qe2.} 38. Qe3 {[%emt 0:00:55][%cal Oc7e8] [#] Strongly threatening Ne8! White has more active pieces.} (38. Bxb7 $2 {too greedy.} Qe7 39. Rxg7+ Qxg7 $17) 38... Rd7 $2 {[%emt 0:02:22][%mdl 8192]} (38... Qf8 $16 39. b4 (39. Bxb7 Rb8 $17) 39... a4) 39. Ne8 {[%emt 0:01:51] Weighted Error Value: White=0.26 (precise) /Black=0.33.  Loses game:     	---       	Black=2      Missed win:     	White=1     	---        Mistake:       	White=1     	Black=2      Inaccurate:     	White=4     	Black=3      OK:         	White=12    	Black=10     Best:        	White=2     	Black=1} 1-0

[Event "US Masters 2024"]
[Site "Charlotte"]
[Date "2024.11.28"]
[Round "1.9"]
[White "Peycheva, Gergana"]
[Black "Bortnyk, Olexandr"]
[Result "0-1"]
[ECO "A50"]
[WhiteElo "2212"]
[BlackElo "2603"]
[Annotator "TA"]
[PlyCount "119"]
[EventDate "2024.09.23"]
[EventType "swiss"]
[EventCountry "USA"]
[SourceTitle "playchess.com"]
[Source "ChessBase"]
[SourceQuality "1"]
[TimeControl "5400+30"]

{[%evp 9,119,43,48,41,60,58,62,58,79,39,33,29,26,15,16,13,18,20,21,28,27,-17,28,0,23,10,22,0,0,0,0,0,10,0,0,0,0,-60,-52,-80,-66,-104,-67,-135,-137,-159,-154,-141,-117,-165,-147,-158,-189,-165,-153,-225,-145,-138,-24,-75,-19,-20,0,0,0,0,0,0,0,0,0,0,0,0,0,0,8,8,15,8,107,-8,-5,-8,-8,-87,-81,-92,-105,-106,-116,-383,-379,-483,-76,-76,0,-531,-524,-521,-505,-482,-458,-584,-584,-626,-626,-613,-584,-4578,-7,-29990]} 1. d4 {[%emt 0:05:32][%cal Bd2d4,Bd4d5][%mdl 32]} Nf6 {[%emt 0:00:33]} 2. c4 {[%emt 0:01:30]} b6 {[%emt 0:00:11]} 3. Nc3 {[%emt 0:02:03]} Bb7 {[%emt 0:00:05]} 4. Nf3 {[%emt 0:02:07]} g6 {[%emt 0:01:08]} 5. d5 {[%emt 0:04:27]} Bg7 {[%emt 0:00:21]} 6. e4 {[%emt 0:01:01]} e5 {[%emt 0:01:05]} 7. Bd3 {[%emt 0:05:42]} Qe7 {[%emt 0:03:17]} 8. O-O {[%emt 0:06:58] White is slightly better.} a5 {[%emt 0:02:29]} 9. d6 {[%emt 0:11:07]} cxd6 {[%emt 0:01:45]} 10. Be3 {[%emt 0:04:12]} Na6 {[%emt 0:00:49]} 11. Bxb6 {[%emt 0:03:05]} Nc5 {[%emt 0:00:26]} 12. Re1 {[%emt 0:06:25]} O-O {[%emt 0:01:14]} 13. Bc2 {[%emt 0:10:16]} Ra6 {[%emt 0:00:55]} 14. Bxc5 {[%emt 0:02:02]} dxc5 {[%emt 0:00:06]} 15. Qd2 {[%emt 0:02:55]} d6 {[%emt 0:04:27]} 16. Rad1 {[%emt 0:02:15]} Nh5 {[%emt 0:02:11]} (16... a4 $5) 17. Ba4 {[%emt 0:05:51] White wants to play Bb5.} Rd8 {[%emt 0:00:24]} 18. Bb5 {[%emt 0:03:52]} Raa8 {[%emt 0:01:11]} 19. g3 {[%emt 0:03:49]} Qf8 {[%emt 0:01:06]} 20. Nd5 {[%emt 0:03:25]} Bh6 {[%emt 0:01:10]} 21. Qe2 {[%emt 0:01:59]} Ng7 {[%emt 0:00:41]} 22. Nf6+ {[%emt 0:04:26] Excellent horsemanship.} Kh8 {[%emt 0:00:08]} 23. Ng4 {[%emt 0:01:37]} (23. Qd3 $11 Qe7 24. Nd5 Bxd5 25. Qxd5 (25. cxd5 f5 $11)) 23... Ne6 $15 {[%emt 0:00:06]} 24. Nxh6 {[%emt 0:00:41]} Qxh6 {[%emt 0:00:05]} 25. Qe3 {[%emt 0:02:20]} Qh5 {[%emt 0:00:27]} 26. Rd3 {[%emt 0:01:52]} (26. Ba4 $15) 26... f5 $17 {[%emt 0:04:58]} 27. exf5 {[%emt 0:00:43]} Qxf5 {[%emt 0:02:40]} 28. Nh4 {[%emt 0:00:48]} Qf6 {[%emt 0:00:09] White must now prevent ...Nd4.} 29. Ba4 {[%emt 0:00:47]} (29. f4 $17 Nd4 (29... exf4 $2 30. Qxe6 Qxb2 31. gxf4 $18) 30. fxe5 dxe5 31. Rf1 (31. Qxe5 $2 Qxe5 32. Rxe5 Ne2+ 33. Kf2 Rxd3 $19)) 29... g5 {[%emt 0:01:15]} 30. Ng2 {[%emt 0:00:31]} Nd4 {[%emt 0:00:35]} 31. Bd1 {[%emt 0:00:23] Repels Nf3+} Rf8 {[%emt 0:00:30]} 32. Bg4 {[%emt 0:00:52]} (32. Rf1 $17 {was necessary.}) 32... e4 {[%emt 0:01:43]} 33. Rd2 {[%emt 0:00:46]} Rae8 {[%emt 0:03:32]} (33... Bc8 $1 $17 {[%cal Rc8g4]} 34. Bd1 Nf3+ 35. Bxf3 exf3) 34. Qc3 $1 $11 {[%emt 0:00:34][%cal Og2e3]} a4 {[%emt 0:01:16]} (34... Kg8 $17) 35. Ne3 {[%emt 0:00:32]} Bc6 {[%emt 0:00:14]} 36. Nc2 $1 {[%emt 0:00:22]} a3 {[%emt 0:04:12]} 37. Nxd4 {[%emt 0:00:36]} cxd4 {[%emt 0:00:04]} 38. Qxd4 {[%emt 0:00:33]} Qxd4 {[%emt 0:00:03]} 39. Rxd4 {[%emt 0:00:07]} axb2 {[%emt 0:00:03][%cal Oe4e3]} 40. Rd2 {[%emt 0:00:55]} e3 $1 {[%emt 0:00:01]} 41. fxe3 {[%emt 0:00:29]} Rxe3 {[%emt 0:00:21][%cal Re3e1]} 42. Be2 {[%emt 0:00:09][%cal Oe1b1]} h5 {[%emt 0:01:24]} (42... Rb8 $6 43. Rb1 $16) 43. Rxb2 {[%emt 0:00:41] next Rd1 is good for White.} h4 {[%emt 0:00:12]} 44. Rf1 {[%emt 0:00:39]} Ra8 {[%emt 0:00:54]} (44... Rxf1+ $11 45. Kxf1 hxg3 46. hxg3 Rxg3) 45. Rfb1 {[%emt 0:00:23]} (45. gxh4 $16 gxh4 46. Rf6) 45... hxg3 {[%emt 0:00:15]} 46. hxg3 {[%emt 0:00:32]} Rxg3+ {[%emt 0:00:03]} 47. Kf2 {[%emt 0:00:35]} (47. Kf1 $1 $11 {remains equal.}) 47... Rg2+ $17 {[%emt 0:00:05]} 48. Ke1 {[%emt 0:00:17]} Re8 $1 {[%emt 0:00:23] Black is much more active.} 49. Kf1 {[%emt 0:00:38][%cal Ob2b6]} g4 $1 {[%emt 0:02:27]} 50. Rd1 $2 {[%emt 0:00:36][%mdl 8192]} (50. Rb8 $2 Rgxe2 51. Rxe8+ Rxe8 $19) (50. Bd3 $17 {only move.} Rf8+ 51. Ke1 Rxb2 52. Rxb2) 50... g3 $19 {[%emt 0:01:36]} 51. Rxd6 {[%emt 0:00:19]} Rf2+ $2 {[%emt 0:04:39]} (51... Rf8+ $1 $19 {has better winning chances.} 52. Ke1 Rg1+ 53. Kd2 g2 54. Rh6+ (54. Rxc6 $2 Rd1+ 55. Bxd1 g1=Q $19) 54... Kg7 55. Rxc6 Rgf1) 52. Kg1 $17 {[%emt 0:00:36]} Rg2+ $2 {[%emt 0:00:33][%mdl 8192]} (52... Rfxe2 53. Rxe2 Rxe2 54. Rxc6 $11) (52... Be4 $17 53. Rh6+ Kg7) 53. Kf1 $19 {[%emt 0:00:04]} Rf8+ $1 {[%emt 0:00:11]} 54. Ke1 {[%emt 0:00:19]} Rg1+ $1 {[%emt 0:00:14]} 55. Kd2 {[%emt 0:00:12] [#]} g2 $1 {[%emt 0:00:28]} 56. Rg6 {[%emt 0:01:30]} (56. Rh6+ Kg7) 56... Rg8 {[%emt 0:01:40]} 57. Rh6+ {[%emt 0:00:28]} Kg7 {[%emt 0:00:04]} 58. Rxc6 {[%emt 0:00:03] [#] White threatens Rb7+ and mate.} Rh1 $1 {[%emt 0:00:16]} ({Stronger than} 58... Rd1+ 59. Bxd1 (59. Kxd1 $2 g1=Q+ 60. Kc2 Re8 $19) 59... Rd8+ 60. Kc3 $11) 59. Rbb6 {[%emt 0:00:59] And now Rg6+ would win.} Kh8 $2 {[%emt 0:00:04]} (59... g1=B $2 {perishes.} 60. Rc7+ Kh8 61. Rb5 $18) (59... g1=Q $19 {( -> ...Rd8+)} 60. Rg6+ Qxg6 61. Rxg6+ Kxg6) 60. Rb7 $2 {[%emt 0:00:55][%mdl 8192] Weighted Error Value: White=0.39/Black=0.35.  Loses game:     	White=2     	---        Missed win:     	---       	Black=1      Mistake:       	White=6     	Black=4      Inaccurate:     	White=5     	Black=3      OK:         	White=14    	Black=14     Best:        	White=6     	Black=4      Strong:       	White=2     	Black=6} (60. Rh6+ Rxh6 61. Rxh6+ Kg7) (60. Rg6 $11 g1=Q 61. Rxg1 Rhxg1 62. c5) 0-1

[Event "US Masters 2024"]
[Site "Charlotte"]
[Date "2024.11.28"]
[Round "1.10"]
[White "Antipov, Mikhail Al."]
[Black "Antova, Gabriela"]
[Result "1-0"]
[ECO "C55"]
[WhiteElo "2602"]
[BlackElo "2205"]
[Annotator "TA"]
[PlyCount "61"]
[EventDate "2024.09.23"]
[EventType "swiss"]
[EventCountry "USA"]
[SourceTitle "playchess.com"]
[Source "ChessBase"]
[SourceQuality "1"]
[TimeControl "5400+30"]

{[%evp 10,61,30,21,42,25,27,18,22,25,18,13,40,10,9,16,8,15,22,15,14,16,79,75,75,60,72,74,97,106,94,95,102,101,189,171,187,149,249,243,245,252,240,249,249,256,265,232,360,361,393,395,391,406]} 1. e4 {[%emt 0:04:50]} e5 {[%emt 0:00:23]} 2. Nf3 {[%emt 0:00:07]} Nc6 {[%emt 0:00:08]} 3. Bc4 {[%emt 0:00:05]} Nf6 {[%emt 0:00:12]} 4. d3 {[%emt 0:00:03]} h6 {[%emt 0:00:11]} 5. O-O {[%emt 0:00:06]} d6 {[%emt 0:03:34]} 6. a4 {[%emt 0:00:10]} g6 {[%emt 0:04:18]} 7. a5 {[%emt 0:00:28]} a6 {[%emt 0:00:24]} 8. Nc3 {[%emt 0:00:20][%cal Bb1c3,Bc3e2,Be2g3][%mdl 32]} Bg7 {[%emt 0:00:37] The position is equal.} 9. h3 {[%emt 0:00:36]} O-O {[%emt 0:01:17]} 10. Re1 {[%emt 0:00:42]} Nb4 {[%emt 0:11:50]} 11. Ne2 {[%emt 0:06:09]} c5 {[%emt 0:05:09]} 12. c3 {[%emt 0:00:21]} Nc6 {[%emt 0:00:17]} 13. Qa4 {[%emt 0:00:09]} Be6 {[%emt 0:09:38]} 14. Ng3 {[%emt 0:01:26]} Kh7 {[%emt 0:06:20]} 15. Be3 {[%emt 0:01:11]} Nd7 {[%emt 0:07:21]} (15... Bxc4 $11 {remains equal.} 16. dxc4 Qe7) 16. Bxe6 $16 {[%emt 0:13:57]} fxe6 {[%emt 0:00:09]} 17. Qb3 {[%emt 0:00:13]} Nxa5 {[%emt 0:08:06]} 18. Qxe6 {[%emt 0:00:16][%cal Oa1a5]} Rf6 {[%emt 0:02:46]} 19. Qg4 {[%emt 0:02:41] White is much more active.} Nc6 {[%emt 0:05:27]} 20. h4 {[%emt 0:06:43]} Nf8 {[%emt 0:02:48]} 21. h5 {[%emt 0:00:21]} Qd7 {[%emt 0:03:30]} (21... g5 $16) 22. hxg6+ $18 {[%emt 0:01:03]} Rxg6 {[%emt 0:00:25]} 23. Qh5 {[%emt 0:00:42] aiming for Nh4.} Qg4 {[%emt 0:07:20]} (23... Ne6 $16 {was necessary.} 24. Nf5 (24. Nh4 Rf6 $18) 24... Rg8) 24. Nh4 {[%emt 0:01:18]} Qxh5 {[%emt 0:01:27]} 25. Nxh5 {[%emt 0:00:04]} Re6 {[%emt 0:00:26]} 26. Nf5 {[%emt 0:00:05]} Bh8 {[%emt 0:00:49]} 27. g4 {[%emt 0:02:17][%cal Bg2g4,Bg4g5][%mdl 32]} Nd7 {[%emt 0:05:02]} 28. Kg2 {[%emt 0:01:22]} Ne7 {[%emt 0:02:47]} (28... Nd8 $142 29. Rh1 Nf7) 29. Rh1 {[%emt 0:00:16] White is winning.} Ng8 {[%emt 0:01:45]} 30. g5 {[%emt 0:00:35]} Rg6 {[%emt 0:01:50]} 31. Rag1 {[%emt 0:00:39] Weighted Error Value: White=0.05 (flawless) /Black=0.28 (precise) .  Mistake:       	---       	Black=4      Inaccurate:     	White=1     	Black=1      OK:         	White=15    	Black=11     Best:        	---       	Black=1} 1-0

[Event "US Masters 2024"]
[Site "Charlotte"]
[Date "2024.11.28"]
[Round "1.11"]
[White "Shundi, Matias"]
[Black "Bok, Benjamin"]
[Result "1-0"]
[ECO "B22"]
[WhiteElo "2205"]
[BlackElo "2593"]
[Annotator "TA"]
[PlyCount "93"]
[EventDate "2024.09.23"]
[EventType "swiss"]
[EventCountry "USA"]
[SourceTitle "playchess.com"]
[Source "ChessBase"]
[SourceQuality "1"]
[TimeControl "5400+30"]

{[%evp 9,93,6,-4,0,6,6,0,8,4,2,10,14,6,27,47,34,46,43,34,39,97,93,84,67,84,88,117,133,149,96,109,83,96,105,468,465,458,458,355,480,475,502,496,493,495,498,491,494,483,479,635,622,631,614,635,639,718,714,702,680,838,813,2016,1941,6087,4995,29961,29963,29950,29952,29943,29950,29950,29950,29951,834,29940,7108,5612,5072,29974,29978,29976,29975,29984,29985]} 1. e4 {[%emt 0:04:01]} c5 {[%emt 0:00:28]} 2. c3 {[%emt 0:00:22]} Nf6 {[%emt 0:00:04]} 3. e5 {[%emt 0:00:05]} Nd5 {[%emt 0:00:05]} 4. Nf3 {[%emt 0:00:05]} d6 {[%emt 0:00:13]} 5. Bb5+ {[%emt 0:00:30]} Bd7 {[%emt 0:00:21]} 6. Bc4 {[%emt 0:00:13]} e6 {[%emt 0:00:10]} 7. d4 {[%emt 0:00:16]} cxd4 {[%emt 0:00:29]} 8. Bxd5 {[%emt 0:00:51] The position is equal.} exd5 {[%emt 0:00:16]} 9. O-O {[%emt 0:00:22]} Nc6 {[%emt 0:09:51]} 10. Bf4 {[%emt 0:02:35]} dxe5 {[%emt 0:05:33]} 11. Bxe5 {[%emt 0:00:29]} dxc3 {[%emt 0:06:55]} 12. Nxc3 {[%emt 0:11:53]} Be6 {[%emt 0:01:27]} 13. Re1 {[%emt 0:07:53][%cal Bf1e1,Be1e5,Be5e6,Be6g6][%mdl 32]} Nxe5 {[%emt 1:11:08]} 14. Nxe5 {[%emt 0:00:49] Qa4+ would now be deadly.} Bd6 {[%emt 0:00:00]} (14... Bc5 $1 $14) 15. Qa4+ $16 {[%emt 0:05:32]} Kf8 {[%emt 0:00:00]} 16. Rad1 {[%emt 0:02:40]} Bxe5 {[%emt 0:00:00]} 17. Rxe5 {[%emt 0:00:19][%cal Rc3d5]} Qd6 {[%emt 0:00:00] [#] Black is weak on the dark squares} 18. Nxd5 $1 {[%emt 0:07:59][%cal Od5f6] White has more active pieces.} h6 {[%emt 0:00:00] [#]} ({Not} 18... Qxe5 19. Qa3+) (18... Rc8 19. Qf4) 19. Rde1 {[%emt 0:23:10]} Kg8 {[%emt 0:00:00]} 20. Qc2 {[%emt 0:03:22][%cal Oh2h4]} Rd8 {[%emt 0:00:00][%cal Od6d7] [#]} 21. h4 $1 {[%emt 0:06:40]} g6 $2 {[%emt 0:02:20][%mdl 8192] [#] Black cannot hold the game after this.} (21... Qd7 $16) (21... h5 22. Nf4) 22. Rxe6 $1 $18 {[%emt 0:02:17][%mdl 512]} Qxd5 {[%emt 0:00:24] [#]} 23. Rxg6+ {[%emt 0:02:24][%mdl 512]} fxg6 {[%emt 0:01:44]} 24. Qxg6+ {[%emt 0:00:10]} Kf8 {[%emt 0:00:00][%cal Od5f7] Strongly threatening ...Qf7!} 25. Qf6+ {[%emt 0:00:21]} Kg8 {[%emt 0:00:01][%cal Oh8h7] [#] Hoping for ...Rh7!} 26. Re3 $1 {[%emt 0:01:40] Rg3+ would kill now.} ({But not} 26. Qg6+ Kf8) 26... Qd1+ {[%emt 0:01:29]} 27. Kh2 {[%emt 0:00:10] White threatens Rg3+ and mate.} Qd6+ {[%emt 0:00:27]} 28. Rg3+ {[%emt 0:00:08]} Qxg3+ {[%emt 0:00:04]} 29. Kxg3 {[%emt 0:00:20][%mdl 4096] Endgame. KQ-KRR} Rd7 {[%emt 0:00:21]} 30. Qe6+ {[%emt 0:03:53]} Rf7 {[%emt 0:00:01]} 31. h5 {[%emt 0:03:18]} Rhh7 {[%emt 0:01:18]} 32. f4 {[%emt 0:01:19]} Rhg7+ {[%emt 0:00:24]} 33. Kf3 {[%emt 0:00:17]} Kh7 {[%emt 0:00:11]} 34. g4 {[%emt 0:01:01]} Re7 {[%emt 0:01:11]} 35. Qf5+ {[%emt 0:00:24]} Kh8 {[%emt 0:00:07]} 36. Qf6 {[%emt 0:00:51]} Kh7 {[%emt 0:00:28]} 37. g5 {[%emt 0:03:10]} hxg5 {[%emt 0:00:32]} 38. fxg5 {[%emt 0:00:32][%cal Bf4g5,Bg5g6][%mdl 32]} Re1 {[%emt 0:00:54]} 39. g6+ {[%emt 0:01:21]} Kh6 {[%emt 0:00:20]} 40. Qf4+ {[%emt 0:00:28]} Kxh5 {[%emt 0:00:04]} 41. Qg4+ {[%emt 0:00:20]} Kh6 {[%emt 0:00:01]} 42. Qh4+ {[%emt 0:00:18]} Kxg6 {[%emt 0:00:02]} 43. Qxe1 {[%emt 0:00:22]} Rf7+ {[%emt 0:01:18]} 44. Kg4 {[%emt 0:00:07] White wants to mate with Qe6+.} a6 {[%emt 0:00:08]} 45. Qe6+ {[%emt 0:00:14] White mates.} Kg7 {[%emt 0:00:09]} 46. Kg5 {[%emt 0:00:11]} Rf2 {[%emt 0:01:59]} 47. Qe5+ {[%emt 0:00:33] Weighted Error Value: White=0.03 (flawless) /Black=0.71.  Loses game:     	---       	Black=1      Mistake:       	White=1     	Black=1      Inaccurate:     	---       	Black=2      OK:         	White=6     	Black=7      Best:        	White=4     	Black=5      Strong:       	White=1     	---        Brilliant:      	White=2     	---} 1-0